fUST/lending_fUST_20241223
["ID","MTS","AMOUNT","RATE_DAILY","PERIOD"]
[346342590,1734900640894,-500.0,0.00013698,2]
[346342592,1734900640903,-1609.14,0.00013698,2]
[346342594,1734900640913,-500.0,0.00013698,2]
[346342596,1734900640922,-1837.05,0.00013698,2]
[346342598,1734900640931,-500.0,0.00013698,2]
[346342600,1734900640940,-683.18,0.00013698,2]
[346342602,1734900640950,-500.0,0.00013698,2]
[346342604,1734900640959,-500.0,0.00013698,2]
[346342606,1734900640968,-1552.26,0.00013698,2]
[346342608,1734900640977,-204.39672516,0.00013698,2]
[346342609,1734900640987,-813.0,0.00013698,2]
[346342611,1734900640996,-500.0,0.00013698,2]
[346342614,1734900641005,-851.36,0.00013698,2]
[346342615,1734900641015,-607.98,0.00013698,2]
[346342617,1734900641024,-512.65,0.00013698,2]
[346342618,1734900641033,-500.0,0.00013698,2]
[346342619,1734900641043,-500.0,0.00013698,2]
[346342621,1734900641054,-1474.99,0.00013698,2]
[346342623,1734900641063,-626.46,0.00013698,2]
[346342625,1734900641072,-500.0,0.00013698,2]
[346342627,1734900641082,-1105.27,0.00013698,2]
[346342629,1734900641092,-500.0,0.00013698,2]
[346342630,1734900641102,-616.63,0.00013698,2]
[346342632,1734900641111,-500.0,0.00013698,2]
[346342634,1734900641121,-500.0,0.00013698,2]
[346342636,1734900641130,-564.08,0.00013698,2]
[346342637,1734900641139,-500.0,0.00013698,2]
[346342639,1734900641149,-500.0,0.00013698,2]
[346342641,1734900641158,-500.0,0.00013698,2]
[346342643,1734900641168,-500.0,0.00013698,2]
[346342645,1734900641177,-170.71400109,0.00013699,2]
[346342647,1734900641187,-1022.91082479,0.00013872,2]
[346342649,1734900641196,-562.0,0.000139,4]
[346342651,1734900641206,-500.0,0.00013972,2]
[346342652,1734900641215,-500.0,0.00013972,2]
[346342654,1734900641224,-500.0,0.00013972,2]
[346342656,1734900641234,-500.0,0.00013972,2]
[346342658,1734900641243,-500.0,0.00013972,2]
[346342660,1734900641253,-635.59,0.00013972,2]
[346342662,1734900641262,-500.0,0.00013972,2]
[346342664,1734900641272,-500.0,0.00013972,2]
[346342667,1734900641282,-500.0,0.00013972,2]
[346342669,1734900641291,-500.0,0.00013972,2]
[346342671,1734900641301,-500.0,0.00013972,2]
[346342673,1734900641310,-500.0,0.00013972,2]
[346342675,1734900641319,-500.0,0.00013972,2]
[346342677,1734900641328,-500.0,0.00013972,2]
[346342678,1734900641338,-500.0,0.00013972,2]
[346342680,1734900641350,-500.0,0.00013972,2]
[346342682,1734900641359,-500.0,0.00013972,2]
[346342684,1734900641369,-500.0,0.00013972,2]
[346342687,1734900641378,-500.0,0.00013972,2]
[346342689,1734900641389,-1241.53,0.00013972,2]
[346342691,1734900641398,-500.0,0.00013972,2]
[346342693,1734900641407,-168.0,0.00013972,2]
[346342695,1734900641416,-500.0,0.00013972,2]
[346342697,1734900641426,-500.0,0.00013972,2]
[346342699,1734900641436,-765.88,0.00013972,2]
[346342701,1734900641445,-579.49,0.00013972,2]
[346342703,1734900641455,-500.0,0.00013972,2]
[346342705,1734900641464,-500.0,0.00013972,2]
[346342707,1734900641474,-500.0,0.00013972,2]
[346342709,1734900641483,-754.75,0.00013972,2]
[346342711,1734900641493,-275.75417456,0.00013972,2]
[346342713,1734900641502,-500.0,0.00013972,2]
[346342715,1734900641512,-500.0,0.00013972,2]
[346342717,1734900641521,-500.0,0.00013972,2]
[346342719,1734900641531,-500.0,0.00013972,2]
[346342721,1734900641540,-568.70191705,0.00013972,2]
[346342723,1734900641549,-500.0,0.00013972,2]
[346342725,1734900641562,-500.0,0.00013972,2]
[346342727,1734900641572,-500.0,0.00013972,2]
[346342729,1734900641581,-585.04,0.00013972,2]
[346342730,1734900641590,-500.0,0.00013972,2]
[346342733,1734900641599,-500.0,0.00013972,2]
[346342735,1734900641609,-531.76,0.00013972,2]
[346342737,1734900641618,-500.0,0.00013972,2]
[346342738,1734900641627,-651.85,0.00013972,2]
[346342739,1734900641637,-500.0,0.00013972,2]
[346342740,1734900641646,-500.0,0.00013972,2]
[346342741,1734900641655,-500.0,0.00013972,2]
[346342742,1734900641664,-500.0,0.00013972,2]
[346342743,1734900641673,-500.0,0.00013972,2]
[346342744,1734900641682,-205.89475266,0.00013972,2]
[346342745,1734900641691,-500.0,0.00013972,2]
[346342746,1734900641699,-500.0,0.00013972,2]
[346342747,1734900641709,-278.23313666,0.00013972,2]
[346342748,1734900641718,-500.0,0.00013972,2]
[346342749,1734900641727,-500.0,0.00013972,2]
[346342750,1734900641736,-500.0,0.00013972,2]
[346342751,1734900641745,-505.7,0.00013972,2]
[346342752,1734900641754,-500.0,0.00013972,2]
[346342753,1734900641763,-500.0,0.00013972,2]
[346342754,1734900641772,-500.0,0.00013972,2]
[346342755,1734900641781,-500.0,0.00013972,2]
[346342756,1734900641790,-912.92,0.00013972,2]
[346342758,1734900641799,-500.0,0.00013972,2]
[346342760,1734900641809,-1920.65,0.00013972,2]
[346342762,1734900641818,-565.13259687,0.00013972,2]
[346342764,1734900641827,-500.0,0.00013972,2]
[346342766,1734900641836,-4340.77,0.00013972,2]
[346342768,1734900641845,-500.0,0.00013972,2]
[346342770,1734900641854,-500.0,0.00013972,2]
[346342772,1734900641863,-8760.65089017,0.00013972,2]
[346342784,1734900641995,-1019.0,0.00013972,2]
[346342786,1734900642006,-2821.89405289,0.00013972,2]
[346342789,1734900642017,-2147.71505694,0.00013972,2]
[346342790,1734900642027,-68.34339927,0.00013972,2]
[346342975,1734900643557,-500.0,0.00013698,2]
[346342977,1734900643567,-431.65660073,0.00013972,2]
[346342979,1734900643576,-233.27989298,0.00013972,2]
[346342983,1734900643614,-831.19060171,0.00013972,2]
[346342985,1734900643625,-2698.64,0.00013972,2]
[346342987,1734900643637,-587.59760783,0.00013972,2]
[346343125,1734900646496,-500.0,0.00013698,2]
[346343126,1734900646506,-500.0,0.00013698,2]
[346343128,1734900646516,-2876.39189748,0.00013972,2]
[346343130,1734900646525,-500.0,0.00013972,2]
[346343132,1734900646534,-1079.66,0.00013972,2]
[346343134,1734900646543,-500.0,0.00013972,2]
[346343136,1734900646552,-530.62383472,0.00013972,2]
[346343137,1734900646562,-1242.33,0.00013972,2]
[346343139,1734900646572,-651.52,0.00013972,2]
[346343141,1734900646581,-500.0,0.00013972,2]
[346343143,1734900646590,-5023.38,0.00013972,2]
[346343146,1734900646600,-812.7,0.00013972,2]
[346343148,1734900646609,-500.0,0.00013972,2]
[346343151,1734900646618,-744.16,0.00013972,2]
[346343153,1734900646628,-500.0,0.00013972,2]
[346343155,1734900646637,-5575.55,0.00013972,2]
[346343157,1734900646645,-500.0,0.00013972,2]
[346343160,1734900646655,-500.0,0.00013972,2]
[346343162,1734900646664,-500.0,0.00013972,2]
[346343164,1734900646673,-500.0,0.00013972,2]
[346343167,1734900646682,-500.0,0.00013972,2]
[346343169,1734900646691,-500.0,0.00013972,2]
[346343171,1734900646700,-777.11,0.00013972,2]
[346343174,1734900646710,-500.0,0.00013972,2]
[346343177,1734900646719,-500.0,0.00013972,2]
[346343179,1734900646728,-500.0,0.00013972,2]
[346343181,1734900646737,-1609.14,0.00013972,2]
[346343183,1734900646746,-256.54323957,0.00013972,2]
[346343185,1734900646756,-1837.05,0.00013972,2]
[346343187,1734900646765,-500.0,0.00013972,2]
[346343189,1734900646775,-683.18,0.00013972,2]
[346343191,1734900646785,-500.0,0.00013972,2]
[346343193,1734900646794,-500.0,0.00013972,2]
[346343195,1734900646804,-1552.26,0.00013972,2]
[346343197,1734900646814,-813.0,0.00013972,2]
[346343199,1734900646826,-500.0,0.00013972,2]
[346343201,1734900646835,-851.36,0.00013972,2]
[346343203,1734900646844,-607.98,0.00013972,2]
[346343205,1734900646855,-512.65,0.00013972,2]
[346343207,1734900646864,-500.0,0.00013972,2]
[346343209,1734900646874,-500.0,0.00013972,2]
[346343211,1734900646883,-1474.99,0.00013972,2]
[346343213,1734900646892,-626.46,0.00013972,2]
[346343215,1734900646901,-1105.27,0.00013972,2]
[346343217,1734900646910,-616.63,0.00013972,2]
[346343219,1734900646920,-500.0,0.00013972,2]
[346343221,1734900646930,-500.0,0.00013972,2]
[346343223,1734900646939,-564.08,0.00013972,2]
[346343225,1734900646949,-500.0,0.00013972,2]
[346343227,1734900646958,-500.0,0.00013972,2]
[346343229,1734900646968,-500.0,0.00013972,2]
[346343231,1734900646977,-500.0,0.00013972,2]
[346343233,1734900646986,-500.0,0.00013972,2]
[346343235,1734900646995,-500.0,0.00013972,2]
[346343237,1734900647005,-500.0,0.00013972,2]
[346343239,1734900647015,-400.0,0.00013973,2]
[346343241,1734900647024,-500.0,0.00014246,2]
[346343243,1734900647033,-500.0,0.00014246,2]
[346343246,1734900647044,-500.0,0.00014246,2]
[346343248,1734900647054,-500.0,0.00014246,2]
[346343250,1734900647065,-635.59,0.00014246,2]
[346343252,1734900647075,-500.0,0.00014246,2]
[346343254,1734900647084,-500.0,0.00014246,2]
[346343256,1734900647093,-500.0,0.00014246,2]
[346343258,1734900647103,-500.0,0.00014246,2]
[346343260,1734900647112,-500.0,0.00014246,2]
[346343262,1734900647121,-500.0,0.00014246,2]
[346343264,1734900647130,-500.0,0.00014246,2]
[346343266,1734900647139,-500.0,0.00014246,2]
[346343268,1734900647148,-500.0,0.00014246,2]
[346343270,1734900647157,-500.0,0.00014246,2]
[346343272,1734900647168,-500.0,0.00014246,2]
[346343274,1734900647177,-500.0,0.00014246,2]
[346343276,1734900647187,-500.0,0.00014246,2]
[346343278,1734900647196,-1241.53,0.00014246,2]
[346343280,1734900647206,-500.0,0.00014246,2]
[346343282,1734900647215,-168.0,0.00014246,2]
[346343284,1734900647224,-500.0,0.00014246,2]
[346343286,1734900647233,-500.0,0.00014246,2]
[346343288,1734900647243,-765.88,0.00014246,2]
[346343290,1734900647252,-579.49,0.00014246,2]
[346343292,1734900647261,-500.0,0.00014246,2]
[346343294,1734900647270,-500.0,0.00014246,2]
[346343296,1734900647279,-500.0,0.00014246,2]
[346343298,1734900647288,-754.75,0.00014246,2]
[346343300,1734900647297,-500.0,0.00014246,2]
[346343302,1734900647306,-500.0,0.00014246,2]
[346343304,1734900647316,-500.0,0.00014246,2]
[346343306,1734900647325,-500.0,0.00014246,2]
[346343308,1734900647334,-500.0,0.00014246,2]
[346343310,1734900647343,-258.70166723,0.00014246,2]
[346343312,1734900647357,-500.0,0.00014246,2]
[346343314,1734900647368,-585.04,0.00014246,2]
[346343316,1734900647377,-500.0,0.00014246,2]
[346343318,1734900647388,-500.0,0.00014246,2]
[346343336,1734900647549,-531.76,0.00014246,2]
[346343338,1734900647560,-500.0,0.00014246,2]
[346343341,1734900647570,-651.85,0.00014246,2]
[346343343,1734900647580,-500.0,0.00014246,2]
[346343345,1734900647590,-500.0,0.00014246,2]
[346343347,1734900647599,-500.0,0.00014246,2]
[346343349,1734900647609,-500.0,0.00014246,2]
[346343351,1734900647618,-500.0,0.00014246,2]
[346343353,1734900647628,-500.0,0.00014246,2]
[346343355,1734900647637,-173.33,0.00014246,2]
[346343357,1734900647646,-500.0,0.00014246,2]
[346343359,1734900647655,-500.0,0.00014246,2]
[346343361,1734900647665,-500.0,0.00014246,2]
[346343363,1734900647674,-505.7,0.00014246,2]
[346343365,1734900647683,-500.0,0.00014246,2]
[346343367,1734900647692,-500.0,0.00014246,2]
[346343369,1734900647702,-500.0,0.00014246,2]
[346343371,1734900647712,-912.92,0.00014246,2]
[346343373,1734900647721,-500.0,0.00014246,2]
[346343375,1734900647731,-1920.65,0.00014246,2]
[346343377,1734900647740,-500.0,0.00014246,2]
[346343379,1734900647749,-4340.77,0.00014246,2]
[346343381,1734900647759,-500.0,0.00014246,2]
[346343383,1734900647768,-500.0,0.00014246,2]
[346343385,1734900647777,-14749.26,0.00014246,2]
[346343387,1734900647787,-500.0,0.00014246,2]
[346343389,1734900647801,-7227.1,0.00014246,2]
[346343391,1734900647810,-500.0,0.00014246,2]
[346343393,1734900647820,-1079.66,0.00014246,2]
[346343395,1734900647829,-500.0,0.00014246,2]
[346343397,1734900647839,-1242.33,0.00014246,2]
[346343399,1734900647848,-651.52,0.00014246,2]
[346343401,1734900647858,-500.0,0.00014246,2]
[346343403,1734900647867,-5023.38,0.00014246,2]
[346343405,1734900647877,-812.7,0.00014246,2]
[346343407,1734900647887,-500.0,0.00014246,2]
[346343409,1734900647897,-744.16,0.00014246,2]
[346343411,1734900647907,-500.0,0.00014246,2]
[346343413,1734900647916,-5575.55,0.00014246,2]
[346343415,1734900647925,-500.0,0.00014246,2]
[346343417,1734900647934,-500.0,0.00014246,2]
[346343419,1734900647944,-500.0,0.00014246,2]
[346343421,1734900647954,-500.0,0.00014246,2]
[346343423,1734900647965,-500.0,0.00014246,2]
[346343425,1734900647974,-500.0,0.00014246,2]
[346343427,1734900647984,-777.11,0.00014246,2]
[346343429,1734900647993,-500.0,0.00014246,2]
[346343431,1734900648002,-500.0,0.00014246,2]
[346343433,1734900648012,-500.0,0.00014246,2]
[346343435,1734900648021,-1609.14,0.00014246,2]
[346343437,1734900648031,-1837.05,0.00014246,2]
[346343439,1734900648041,-500.0,0.00014246,2]
[346343441,1734900648060,-683.18,0.00014246,2]
[346343443,1734900648070,-500.0,0.00014246,2]
[346343445,1734900648079,-500.0,0.00014246,2]
[346343447,1734900648090,-1552.26,0.00014246,2]
[346343449,1734900648100,-813.0,0.00014246,2]
[346343451,1734900648109,-500.0,0.00014246,2]
[346343453,1734900648120,-851.36,0.00014246,2]
[346343455,1734900648130,-607.98,0.00014246,2]
[346343457,1734900648140,-512.65,0.00014246,2]
[346343459,1734900648150,-500.0,0.00014246,2]
[346343461,1734900648161,-500.0,0.00014246,2]
[346343463,1734900648172,-1474.99,0.00014246,2]
[346343466,1734900648182,-626.46,0.00014246,2]
[346343467,1734900648192,-1105.27,0.00014246,2]
[346343469,1734900648202,-616.63,0.00014246,2]
[346343471,1734900648212,-500.0,0.00014246,2]
[346343473,1734900648221,-500.0,0.00014246,2]
[346343476,1734900648231,-500.0,0.00014246,2]
[346343477,1734900648240,-564.08,0.00014246,2]
[346343479,1734900648250,-500.0,0.00014246,2]
[346343481,1734900648260,-500.0,0.00014246,2]
[346343483,1734900648269,-500.0,0.00014246,2]
[346343485,1734900648279,-369.54557376,0.00014246,2]
[346343487,1734900648289,-500.0,0.00014246,2]
[346343489,1734900648299,-2000.0,0.000145,2]
[346343491,1734900648308,-24987.72752935,0.0001452,2]
[346343493,1734900648318,-500.0,0.0001452,2]
[346343495,1734900648328,-500.0,0.0001452,2]
[346343497,1734900648337,-500.0,0.0001452,2]
[346343499,1734900648349,-500.0,0.0001452,2]
[346343501,1734900648359,-635.59,0.0001452,2]
[346343503,1734900648369,-500.0,0.0001452,2]
[346343505,1734900648378,-500.0,0.0001452,2]
[346343507,1734900648389,-500.0,0.0001452,2]
[346343509,1734900648398,-500.0,0.0001452,2]
[346343511,1734900648407,-500.0,0.0001452,2]
[346343513,1734900648417,-500.0,0.0001452,2]
[346343515,1734900648426,-500.0,0.0001452,2]
[346343516,1734900648436,-500.0,0.0001452,2]
[346343518,1734900648446,-635.30404179,0.0001452,2]
[346343520,1734900648455,-500.0,0.0001452,2]
[346343522,1734900648465,-500.0,0.0001452,2]
[346343525,1734900648476,-500.0,0.0001452,2]
[346343527,1734900648486,-500.0,0.0001452,2]
[346343529,1734900648496,-1241.53,0.0001452,2]
[346343531,1734900648505,-500.0,0.0001452,2]
[346343533,1734900648514,-168.0,0.0001452,2]
[346343534,1734900648524,-500.0,0.0001452,2]
[346343536,1734900648533,-500.0,0.0001452,2]
[346343538,1734900648543,-765.88,0.0001452,2]
[346343540,1734900648552,-579.49,0.0001452,2]
[346343542,1734900648561,-500.0,0.0001452,2]
[346343544,1734900648571,-500.0,0.0001452,2]
[346343547,1734900648582,-500.0,0.0001452,2]
[346343548,1734900648591,-754.75,0.0001452,2]
[346343550,1734900648601,-500.0,0.0001452,2]
[346343552,1734900648612,-500.0,0.0001452,2]
[346343555,1734900648622,-500.0,0.0001452,2]
[346343557,1734900648633,-500.0,0.0001452,2]
[346343559,1734900648642,-500.0,0.0001452,2]
[346343561,1734900648652,-500.0,0.0001452,2]
[346343563,1734900648662,-585.04,0.0001452,2]
[346343565,1734900648672,-500.0,0.0001452,2]
[346343567,1734900648682,-500.0,0.0001452,2]
[346343569,1734900648691,-531.76,0.0001452,2]
[346343571,1734900648701,-500.0,0.0001452,2]
[346343572,1734900648710,-651.85,0.0001452,2]
[346343575,1734900648720,-230.09318782,0.0001452,2]
[346343576,1734900648730,-500.0,0.0001452,2]
[346343579,1734900648740,-500.0,0.0001452,2]
[346343580,1734900648750,-500.0,0.0001452,2]
[346343582,1734900648759,-500.0,0.0001452,2]
[346343584,1734900648768,-500.0,0.0001452,2]
[346343586,1734900648778,-500.0,0.0001452,2]
[346343588,1734900648788,-500.0,0.0001452,2]
[346343590,1734900648797,-500.0,0.0001452,2]
[346343592,1734900648807,-505.7,0.0001452,2]
[346343594,1734900648820,-500.0,0.0001452,2]
[346343596,1734900648829,-500.0,0.0001452,2]
[346343598,1734900648839,-500.0,0.0001452,2]
[346343601,1734900648848,-912.92,0.0001452,2]
[346343603,1734900648858,-500.0,0.0001452,2]
[346343605,1734900648869,-1920.65,0.0001452,2]
[346343607,1734900648879,-500.0,0.0001452,2]
[346343609,1734900648889,-4340.77,0.0001452,2]
[346343611,1734900648899,-500.0,0.0001452,2]
[346343613,1734900648909,-500.0,0.0001452,2]
[346343615,1734900648918,-14749.26,0.0001452,2]
[346343617,1734900648928,-500.0,0.0001452,2]
[346343619,1734900648938,-7227.1,0.0001452,2]
[346343621,1734900648947,-500.0,0.0001452,2]
[346343623,1734900648956,-1079.66,0.0001452,2]
[346343625,1734900648966,-500.0,0.0001452,2]
[346343627,1734900648975,-1242.33,0.0001452,2]
[346343628,1734900648985,-651.52,0.0001452,2]
[346343630,1734900648994,-500.0,0.0001452,2]
[346343632,1734900649003,-5023.38,0.0001452,2]
[346343634,1734900649012,-812.7,0.0001452,2]
[346343636,1734900649021,-500.0,0.0001452,2]
[346343638,1734900649031,-744.16,0.0001452,2]
[346343640,1734900649040,-500.0,0.0001452,2]
[346343642,1734900649049,-5575.55,0.0001452,2]
[346343644,1734900649059,-500.0,0.0001452,2]
[346343645,1734900649071,-500.0,0.0001452,2]
[346343646,1734900649080,-528.60732591,0.0001452,2]
[346343647,1734900649090,-500.0,0.0001452,2]
[346343648,1734900649099,-500.0,0.0001452,2]
[346343649,1734900649108,-500.0,0.0001452,2]
[346343650,1734900649118,-777.11,0.0001452,2]
[346343651,1734900649126,-500.0,0.0001452,2]
[346343652,1734900649136,-500.0,0.0001452,2]
[346343653,1734900649144,-500.0,0.0001452,2]
[346343654,1734900649153,-1609.14,0.0001452,2]
[346343655,1734900649163,-1837.05,0.0001452,2]
[346343656,1734900649171,-500.0,0.0001452,2]
[346343657,1734900649180,-683.18,0.0001452,2]
[346343658,1734900649190,-500.0,0.0001452,2]
[346343659,1734900649200,-500.0,0.0001452,2]
[346343660,1734900649209,-1552.26,0.0001452,2]
[346343661,1734900649219,-813.0,0.0001452,2]
[346343663,1734900649228,-500.0,0.0001452,2]
[346343665,1734900649238,-851.36,0.0001452,2]
[346343667,1734900649248,-607.98,0.0001452,2]
[346343668,1734900649258,-512.65,0.0001452,2]
[346343670,1734900649267,-500.0,0.0001452,2]
[346343672,1734900649277,-500.0,0.0001452,2]
[346343674,1734900649287,-626.46,0.0001452,2]
[346343676,1734900649296,-1474.99,0.0001452,2]
[346343678,1734900649305,-1105.27,0.0001452,2]
[346343680,1734900649316,-616.63,0.0001452,2]
[346343683,1734900649326,-287.25996471,0.0001452,2]
[346343684,1734900649335,-500.0,0.0001452,2]
[346343686,1734900649346,-500.0,0.0001452,2]
[346343688,1734900649358,-564.08,0.0001452,2]
[346343690,1734900649367,-500.0,0.0001452,2]
[346343692,1734900649376,-500.0,0.0001452,2]
[346343694,1734900649387,-500.0,0.0001452,2]
[346343696,1734900649397,-500.0,0.0001452,2]
[346343698,1734900649407,-152.0,0.00014622,2]
[346343700,1734900649417,-10306.23948023,0.00014646,2]
[346343702,1734900649426,-500.0,0.00014715,2]
[346343704,1734900649436,-500.0,0.00014715,2]
[346343706,1734900649447,-500.0,0.00014716,2]
[346343708,1734900649456,-500.0,0.00014755,2]
[346343710,1734900649465,-500.0,0.00014794,2]
[346343713,1734900649475,-500.0,0.00014794,2]
[346343715,1734900649484,-500.0,0.00014794,2]
[346343716,1734900649493,-646.62492541,0.00014794,2]
[346343717,1734900649502,-635.59,0.00014794,2]
[346343718,1734900649512,-500.0,0.00014794,2]
[346343719,1734900649521,-500.0,0.00014794,2]
[346343720,1734900649530,-500.0,0.00014794,2]
[346343721,1734900649539,-500.0,0.00014794,2]
[346343722,1734900649548,-500.0,0.00014794,2]
[346343723,1734900649558,-500.0,0.00014794,2]
[346343724,1734900649567,-500.0,0.00014794,2]
[346343725,1734900649577,-500.0,0.00014794,2]
[346343726,1734900649585,-500.0,0.00014794,2]
[346343727,1734900649594,-500.0,0.00014794,2]
[346343728,1734900649603,-500.0,0.00014794,2]
[346343729,1734900649613,-500.0,0.00014794,2]
[346343730,1734900649622,-1241.53,0.00014794,2]
[346343731,1734900649632,-500.0,0.00014794,2]
[346343732,1734900649641,-168.0,0.00014794,2]
[346343733,1734900649650,-500.0,0.00014794,2]
[346343734,1734900649659,-500.0,0.00014794,2]
[346343735,1734900649669,-765.88,0.00014794,2]
[346343736,1734900649678,-579.49,0.00014794,2]
[346343737,1734900649687,-233.11189424,0.00014794,2]
[346343738,1734900649697,-500.0,0.00014794,2]
[346343739,1734900649706,-500.0,0.00014794,2]
[346343740,1734900649715,-754.75,0.00014794,2]
[346343741,1734900649724,-500.0,0.00014794,2]
[346343742,1734900649734,-500.0,0.00014794,2]
[346343743,1734900649744,-500.0,0.00014794,2]
[346343745,1734900649753,-500.0,0.00014794,2]
[346343746,1734900649763,-499.01760981,0.00014794,2]
[346343747,1734900649772,-185.16825147,0.00014794,2]
[346343749,1734900649781,-585.04,0.00014794,2]
[346343750,1734900649790,-500.0,0.00014794,2]
[346343751,1734900649799,-500.0,0.00014794,2]
[346343752,1734900649809,-531.76,0.00014794,2]
[346343753,1734900649818,-500.0,0.00014794,2]
[346343754,1734900649827,-651.85,0.00014794,2]
[346343755,1734900649837,-500.0,0.00014794,2]
[346343756,1734900649846,-500.78264117,0.00014794,2]
[346343757,1734900649855,-500.0,0.00014794,2]
[346343758,1734900649864,-283.43710995,0.00014794,2]
[346343760,1734900649873,-500.0,0.00014794,2]
[346343761,1734900649882,-500.0,0.00014794,2]
[346343763,1734900649892,-500.0,0.00014794,2]
[346343765,1734900649901,-500.0,0.00014794,2]
[346343766,1734900649910,-505.7,0.00014794,2]
[346343768,1734900649919,-384.79747543,0.00014794,2]
[346343769,1734900649928,-500.0,0.00014794,2]
[346343770,1734900649937,-500.0,0.00014794,2]
[346343771,1734900649947,-912.92,0.00014794,2]
[346343772,1734900649956,-500.0,0.00014794,2]
[346343773,1734900649966,-1920.65,0.00014794,2]
[346343774,1734900649975,-500.0,0.00014794,2]
[346343775,1734900649984,-4340.77,0.00014794,2]
[346343776,1734900649993,-500.0,0.00014794,2]
[346343777,1734900650003,-500.0,0.00014794,2]
[346343778,1734900650012,-14749.26,0.00014794,2]
[346343779,1734900650022,-500.0,0.00014794,2]
[346343780,1734900650031,-7227.1,0.00014794,2]
[346343781,1734900650041,-500.0,0.00014794,2]
[346343782,1734900650051,-1079.66,0.00014794,2]
[346343783,1734900650060,-500.0,0.00014794,2]
[346343784,1734900650069,-1242.33,0.00014794,2]
[346343785,1734900650079,-651.52,0.00014794,2]
[346343786,1734900650088,-500.0,0.00014794,2]
[346343787,1734900650097,-5023.38,0.00014794,2]
[346343788,1734900650107,-812.7,0.00014794,2]
[346343789,1734900650116,-500.0,0.00014794,2]
[346343790,1734900650125,-744.16,0.00014794,2]
[346343791,1734900650134,-500.0,0.00014794,2]
[346343792,1734900650143,-5575.55,0.00014794,2]
[346343793,1734900650153,-500.0,0.00014794,2]
[346343794,1734900650162,-500.0,0.00014794,2]
[346343795,1734900650172,-500.0,0.00014794,2]
[346343796,1734900650181,-500.0,0.00014794,2]
[346343797,1734900650191,-500.0,0.00014794,2]
[346343798,1734900650201,-777.11,0.00014794,2]
[346343799,1734900650210,-500.0,0.00014794,2]
[346343800,1734900650220,-500.0,0.00014794,2]
[346343801,1734900650230,-500.0,0.00014794,2]
[346343802,1734900650239,-1609.14,0.00014794,2]
[346343803,1734900650249,-1837.05,0.00014794,2]
[346343804,1734900650261,-500.0,0.00014794,2]
[346343805,1734900650270,-683.18,0.00014794,2]
[346343806,1734900650279,-500.0,0.00014794,2]
[346343807,1734900650289,-500.0,0.00014794,2]
[346343808,1734900650298,-1552.26,0.00014794,2]
[346343809,1734900650308,-813.0,0.00014794,2]
[346343810,1734900650317,-500.0,0.00014794,2]
[346343811,1734900650326,-851.36,0.00014794,2]
[346343812,1734900650336,-512.65,0.00014794,2]
[346343813,1734900650348,-607.98,0.00014794,2]